Cogmind - Beta 13 @@@ ROGUE MODE // 2024.04.14 @ 21:38:59 Player: maddiematics Result: Self-destructed Performance ------------- Evolutions (1) 500 Regions Visited (3) 600 Robots Destroyed (11) 55 Value Destroyed (174) 174 Prototype IDs (0) 0 Alien Tech Used (0) 0 Bonus (-38) -38 TOTAL SCORE: 1291 Bonus ------- Friendly Fire -38 Cogmind --------- Core Integrity 389/400 Matter 268/300 Energy 250/250 System Corruption 0% Temperature Cool (0) Movement Walking (190) Ox1 Location -9/Materials Parts ------- > --- POWER (1) -------- Ion Engine > --- PROPULSION (2) --- Aluminum Leg Aluminum Leg > --- UTILITY (4) ------ Heat Sink Large Storage Unit > --- WEAPON (2) ------- Hammer > --- INVENTORY (15) --- Aluminum Leg Large Storage Unit High-capacity Storage Unit Signal Interpreter Tractor Beam Medium Laser Assault Rifle Light Assault Rifle Light Assault Rifle Datajack Peak State ------------ > --- POWER ------------ Ion Engine > --- PROPULSION ------- Aluminum Leg Aluminum Leg > --- UTILITY ---------- Heat Sink Large Storage Unit > --- WEAPON ----------- Grenade Launcher Hammer > --- INVENTORY -------- Aluminum Leg Large Storage Unit High-capacity Storage Unit Signal Interpreter Tractor Beam Medium Laser Assault Rifle Light Assault Rifle Light Assault Rifle Datajack [Rating: 8] Favorites ----------- Power Ion Engine Engine Ion Engine Propulsion Aluminum Leg Leg Aluminum Leg Wheel Wheel Utility Heat Sink Device Heat Sink Storage Large Storage Unit Weapon Hammer Energy Gun Medium Laser Ballistic Gun Light Assault Rifle Launcher Grenade Launcher Impact Weapon Hammer Build | -11 -10 -10 -9 ------- Run | Yrd Mat Min Mat Slots Evolved 2 | . . . 2 Power . | . . . . Propulsion . | . . . . Utility 2 | . . . 2 Weapon . | . . . . Parts Attached 17 | 7 6 4 . Power 2 | 1 . 1 . Engine 2 | 1 . 1 . Core . | . . . . Reactor . | . . . . Propulsion 4 | 2 2 . . Treads . | . . . . Leg 2 | . 2 . . Wheel 2 | 2 . . . Hover . | . . . . Flight . | . . . . Utility 3 | 1 2 . . Device 1 | . 1 . . Storage 2 | 1 1 . . Processor . | . . . . Hackware . | . . . . Protection . | . . . . Artifact . | . . . . Weapon 8 | 3 2 3 . Energy Gun 2 | 1 1 . . Energy Cannon . | . . . . Ballistic Gun 2 | 2 . . . Ballistic Cannon . | . . . . Launcher 2 | . . 2 . Special Weapon . | . . . . Impact Weapon 2 | . 1 1 . Slashing Weapon . | . . . . Piercing Weapon . | . . . . Special Melee Weapon . | . . . . Unidentified Prototypes . | . . . . Parts Lost 5 | . 3 2 . Power 1 | . . 1 . Propulsion 2 | . 2 . . Utility . | . . . . Weapon 2 | . 1 1 . Highest Loss Streak 2 | . 2 1 . To Critical Strikes . | . . . . Average Slot Usage (%) 85 | . 79 90 66 Engine 12 | . 14 11 11 Leg 21 | . 10 28 22 Wheel 1 | . 3 . . Device 12 | . 10 14 11 Storage 13 | . 14 14 11 Energy Gun 2 | . 5 1 . Ballistic Gun 6 | . 17 . . Launcher 4 | . . 7 . Impact Weapon 9 | . 3 13 11 Naked Turns . | . . . . Heaviest Build 31 | 13 30 31 28 Greatest Support 20 | 20 20 20 20 Greatest Overweight (x) 4 | . 4 1 1 Average Overweight (x) 1 | . 1 1 1 Largest Inventory Capacity 15 | 8 15 15 15 Average Capacity 12 | 6 8 15 15 Most Carried 11 | 4 9 11 10 Average Carried 8 | 2 6 9 10 Final Capacity 15 | 8 15 15 15 Final Carried 10 | 4 9 10 10 Class Distribution -------------------- 100% | Mutant Dominant Class ---------------- Mutant | -10/Materials Mutant | -10/Mines Mutant | -9/Materials Resources | -11 -10 -10 -9 ----------- Run | Yrd Mat Min Mat Matter Collected 418 | 235 80 103 . Remotely . | . . . . Salvage Created 221 | . 164 57 . Parts 16 | . 12 4 . Haulers Intercepted . | . . . . Recyclers Shooed 1 | . 1 . . Parts Field Recycled . | . . . . Retrieved Matter . | . . . . Parts Self-Destructed . | . . . . Prevented . | . . . . Kills | -11 -10 -10 -9 ------- Run | Yrd Mat Min Mat Combat Hostiles Destroyed 9 | . 6 3 . Guns 6 | . 6 . . AOE 3 | . . 3 . Classes Destroyed 4 | . 2 2 . Builder 1 | . . 1 . Tunneler 1 | . . 1 . Swarmer 6 | . 3 3 . Grunt 3 | . 3 . . Best Kill Streak 3 | . 3 3 . Combat Bots Only 3 | . 3 3 . Max Kills in Single Turn 3 | . 1 3 . Gunslinging . | . . . . Exploded 3 | . . 3 . Melee . | . . . . Uniques/NPCs Destroyed . | . . . . Combat | -11 -10 -10 -9 -------- Run | Yrd Mat Min Mat Hostile Shots Fired 73 | . 65 7 1 Missed 15 | . 14 1 . Damage Taken 626 | . 454 161 11 Core 114 | . 73 30 11 Absorbed by Shields . | . . . . Core Remaining (%) 79 | 100 . 58 . Volleys Fired 31 | . 30 1 . Largest 2 | . 2 2 . Hottest 80 | . 70 80 . Shots Fired 51 | . 49 2 . Gun 49 | . 49 . . Cannon . | . . . . Launcher 2 | . . 2 . Special . | . . . . Kinetic 48 | . 48 . . Thermal 1 | . 1 . . Explosive 2 | . . 2 . Electromagnetic . | . . . . Robot Hit Streak 11 | . 9 11 . Robot Miss Streak 3 | . 3 . . Penetration Max . | . . . . Secondary Targets 2 | . 2 . . Max Gunslinging Chain 1 | . 1 . . Shots Hit Robots 35 | . 29 6 . Core Hits 14 | . 10 4 . Critical Kills . | . . . . Critical Parts Destroyed 1 | . . 1 . Critical Strikes 1 | . . 1 . Smash 1 | . . 1 . Melee Attacks 30 | . 17 13 . Impact 30 | . 17 13 . Slashing . | . . . . Piercing . | . . . . Sneak Attacks 2 | . . 2 . Combat Hostiles . | . . . . Follow-up Attacks . | . . . . Damage Inflicted 663 | . 299 364 . Guns 297 | . 297 . . Cannons . | . . . . Explosions 178 | . . 178 . Melee 172 | . . 172 . Ramming 16 | . 2 14 . Kinetic 297 | . 297 . . Thermal . | . . . . Explosive 178 | . . 178 . Electromagnetic . | . . . . Impact 172 | . . 172 . Slashing . | . . . . Piercing . | . . . . Highest Corruption 2 | . 1 2 . Average Corruption 1 | . 1 1 . Corruption Purged . | . . . . Corruption Blocked . | . . . . Effects 12 | . 2 10 . Message Errors 3 | . . 3 . Matter Fused 2 | . 1 1 . Heat Flow Errors 3 | . 1 2 . Energy Discharges 1 | . . 1 . Data Loss (major) 1 | . . 1 . Misfires 1 | . . 1 . Weapon Failures 1 | . . 1 . Overload Shots . | . . . . Overflow Damage 93 | . . 93 . Projectiles . | . . . . Explosions 38 | . . 38 . Melee 55 | . . 55 . Knockbacks . | . . . . Impact . | . . . . Kinetic . | . . . . Secondary . | . . . . Self-Inflicted Damage 93 | . . 93 . Shots 2 | . . 2 . Rammed 4 | . 4 . . Targets Rammed 4 | . 4 . . Kicked . | . . . . Crushed . | . . . . Highest Temperature 165 | . 165 151 . Average Temperature 74 | . 72 76 . Received Heat Transfer 96 | . 90 . 6 Siege Activations . | . . . . Robots Corrupted . | . . . . Combat Hostiles . | . . . . Parts Fried . | . . . . Impact Corruptions 2 | . . 2 . Robots Melted . | . . . . Combat Hostiles . | . . . . Parts Melted . | . . . . Heat Transferred . | . . . . Parts Sabotaged . | . . . . Parts Stolen . | . . . . Parts Stripped . | . . . . Power Chain Reactions . | . . . . Alert | -11 -10 -10 -9 ------- Run | Yrd Mat Min Mat Peak Influence 151 | . 151 93 1 Initial 13 | . . 13 1 Average 34 | . 47 30 1 Maximum Alert Level . | . . . . Low Security (%) 100 | 100 100 100 100 Level 1 . | . . . . Level 2 . | . . . . Level 3 . | . . . . Level 4 . | . . . . Level 5 . | . . . . High Security . | . . . . Max Security . | . . . . Squads Dispatched 1 | . 1 . . Investigation 1 | . 1 . . Extermination . | . . . . Reinforcement . | . . . . Assault . | . . . . Garrison . | . . . . Intercept . | . . . . Searches Triggered . | . . . . Construction Impeded . | . . . . Haulers Reinforced . | . . . . Active Scanning Responses . | . . . . Cargo Convoy Interrupts . | . . . . Stealth | -11 -10 -10 -9 --------- Run | Yrd Mat Min Mat Distress Signals 1 | . 1 . . Communications Jammed . | . . . . Distress Signals . | . . . . Times Spotted 19 | . 14 3 2 Peak Tracking Total 4 | . 4 3 2 Tactical Retreats 1 | . 1 . . Traps | -11 -10 -10 -9 ------- Run | Yrd Mat Min Mat Traps Triggered 1 | . 1 . . Indirectly . | . . . . Trap Hack Attempts . | . . . . Triggered . | . . . . Disarmed 1 | . 1 . . Reprogrammed . | . . . . Reused . | . . . . Traps Extracted . | . . . . Installed . | . . . . Triggered . | . . . . Machines | -11 -10 -10 -9 ---------- Run | Yrd Mat Min Mat Machines Disabled . | . . . . Max in Single Turn . | . . . . Machines Repaired . | . . . . Machines Dismantled . | . . . . Machines Sabotaged . | . . . . Overloaded Fab Kills . | . . . . Hacking | -11 -10 -10 -9 --------- Run | Yrd Mat Min Mat Machines Accessed 2 | . 1 . 1 Terminals 2 | . 1 . 1 Fabricators . | . . . . Repair Stations . | . . . . Recycling Units . | . . . . Scanalyzers . | . . . . Garrison Access . | . . . . Total Hacks 4 | . 3 . 1 Successful 3 | . 3 . . Failed 1 | . . . 1 Catastrophic . | . . . . Database Lockouts . | . . . . Manual . | . . . . Terminals 4 | . 3 . 1 Fabricators . | . . . . Repair Stations . | . . . . Recycling Units . | . . . . Scanalyzers . | . . . . Garrison Access . | . . . . Terminal Hacks 3 | . 3 . . Locate Traps 1 | . 1 . . Disarm Traps 1 | . 1 . . Hauler Manifests 1 | . 1 . . Fabricator Hacks . | . . . . Repair Station Hacks . | . . . . Recycling Unit Hacks . | . . . . Scanalyzer . | . . . . Garrison Access Hacks . | . . . . Unauthorized Hacks . | . . . . Terminals . | . . . . Fabricators . | . . . . Repair Stations . | . . . . Recycling Units . | . . . . Scanalyzers . | . . . . Garrison Access . | . . . . Data Cores Recovered . | . . . . Used . | . . . . Hacking Detections 2 | . 1 . 1 Full Trace Events 1 | . 1 . . Feedback Events 1 | . 1 . . Corruption 1 | . 1 . . Feedback Blocked . | . . . . Robot Schematics Acquired . | . . . . Robots Built . | . . . . Authchips . | . . . . Time . | . . . . Total Robot Build Rating . | . . . . Part Schematics Acquired . | . . . . Parts Built . | . . . . Authchips . | . . . . Time . | . . . . Total Part Build Rating . | . . . . Parts Repaired . | . . . . Time . | . . . . Parts Recycled . | . . . . Recycled Matter . | . . . . Retrieved Matter . | . . . . Retrieved Components . | . . . . Parts Scanalyzed . | . . . . Part Schematics Acquired . | . . . . Parts Damaged . | . . . . Bothacking | -11 -10 -10 -9 ------------ Run | Yrd Mat Min Mat Used RIF Installer . | . . . . Robots Hacked . | . . . . Non-combat . | . . . . Combat . | . . . . Robot Hacks Applied . | . . . . Relay Couplers Released . | . . . . Fabnet Peak Effective % . | . . . . Robots Rewired . | . . . . Allies Hacked . | . . . . Hacks Repelled . | . . . . Allies | -11 -10 -10 -9 -------- Run | Yrd Mat Min Mat Total Allies 2 | . . 2 . Largest Group 2 | . . 2 2 Highest-Rated Group 46 | . . 46 46 Highest-Rated Ally 31 | . . 31 31 Total Orders . | . . . . Ally Attacks 3 | . . . 3 Total Damage 21 | . . . 21 Kills . | . . . . Allies Corrupted . | . . . . Allies Melted . | . . . . Intel | -11 -10 -10 -9 ------- Run | Yrd Mat Min Mat Robot Analysis Total . | . . . . Derelict Logs Recovered 1 | . . 1 . Drone Launches . | . . . . Drone Recoveries . | . . . . Exploration | -11 -10 -10 -9 ------------- Run | Yrd Mat Min Mat Turns Passed 1845 | 58 674 1059 54 Spaces Moved 937 | 55 321 533 28 Core 119 | 1 118 . . Treads . | . . . . Legs 716 | . 155 533 28 Wheels 102 | 54 48 . . Hover . | . . . . Flight . | . . . . Fastest Speed 50 | 50 80 190 190 Average Speed 173 | 79 161 190 190 Slowest Speed 250 | 80 250 190 190 Overloaded Moves . | . . . . Propulsion Burnouts . | . . . . Robots Hopped . | . . . . Cave-ins Triggered . | . . . . Exploration Rate (%) 34 | 3 51 81 3 Regions Visited 3 Branch Regions 1 Pre-discovered Areas 1 | . . 1 . Known Exits Taken . | . . . . Unknown Exits Taken 3 | 1 1 1 . Scrap Searched 2 | . . 2 . Spaces Dug 15 | . 11 4 . Terrain Destroyed 30 | . 11 19 . Melee 15 | . 11 4 . Projectile . | . . . . AOE 15 | . . 15 . Terrain Rammed 1 | . . 1 . Walls Destroyed . | . . . . Machines Disabled . | . . . . Actions | -11 -10 -10 -9 --------- Run | Yrd Mat Min Mat Total 1046 | 65 400 553 28 Wait 14 | . 14 . . Move 934 | 54 320 532 28 Hop . | . . . . Pick Up 14 | 4 8 2 . Fast Attach 7 | 6 1 . . Attach 4 | . 3 1 . Detach . | . . . . Swap 6 | 1 2 3 . Drop 1 | . 1 . . Fire 31 | . 30 1 . Melee 30 | . 17 13 . Ram 5 | . 4 1 . Kick . | . . . . Crush . | . . . . Escape Stasis . | . . . . Rewire . | . . . . Trap . | . . . . Miscellaneous . | . . . . Route ------- -11/Scrapyard -10/Materials (discovered 2 exits: *Mat / [*Min]) -10/Mines (discovered 2 exits: *Mat x2) -9/Materials History --------- Turn | Location | Event 17 | -11/Scrapyard | Discovered new exit (range 15) 59 | -11/Scrapyard | Entered Materials 311 | -10/Materials | Build established: Mutant 592 | -10/Materials | Discovered new exit (range 12) 696 | -10/Materials | Discovered new exit (range 8) 733 | -10/Materials | Entered Mines 819 | -10/Mines | Met a Derelict bent on vengeance 948 | -10/Mines | Discovered new exit (range 11) 1707 | -10/Mines | Learned location of Storage (-7) 1709 | -10/Mines | Discovered new exit (range 14) 1792 | -10/Mines | Entered Materials 1792 | -9/Materials | Accompanied by 2 allies 1792 | -9/Materials | Evolved 2 slots: Utility x2 1797 | -9/Materials | Led the pair of lost Derelicts to an unsafe place 1846 | -9/Materials | Self-destructed Last Messages --------------- Found 26 Matter. Acquired 26 matter. T-07 Excavator is excavating. Sneak attack on T-07 Excavator. T-07 Excavator suffers critical hit (Smash). Destroyed Mining Laser. T-07 Excavator system corrupted by crushing effect. T-07 Excavator destroyed. Acquired 17 matter. R-06 Scavenger collects Corrupted Lgt. Ion Engine. Acquired derelict log, extracted data. World map updated: -7/Storage. EXIT=FOUND PARAMETERS=UTILITY+2 LOCATION=UNKNOWN GOAL=ESCAPE 3I-7KP(g): "This place looks worse than where we left..." 3I-7KP(g): "Following you was a bad idea, I think." Connecting with Terminal... Current location identified: Materials Map ----- +----------------------------------------------------+ | | | | | | | | | | | | | | | | | ?????????????????????????????????????????????????? | | ?????????????????????????????????????????????????? | | ?????????????????????????????????????????????????? | | ?????????????????????????????????????????????????? | | ?????????????????????????????????????????????????? | | ?????????????????????????????????????????????????? | | ?????????????????????????????????????????????????? | | ?????????????????????????????????????????????????? | | ?????????????????????????????????????????????????? | | ???????????????????###############???????????????? | | ?????????????????### # #???????????????? | | ?????????????????#"" # #???????????????? | | ?????????????????#"" """"" # #???????????????? | | ?????????????????#"T """"" + #???????????????? | | ?????????????????#"" """"" # #???????????????? | | ?????????????????#"" # #???????????????? | | ???????+ ###### # #???????????????? | | ???????????# + @ # #???????????????? | | ???????????# ################ #???????????????? | | ?????????????????????????????# #???????????????? | | ?????????????????????????????# #???????????????? | | ?????????????????????????????# ???????????????? | | ?????????????????????????????+ ???????????????? | | ?????????????????????????????# ???????????????? | | ?????????????????????????????? ??????????????? | | ?????????????????????????????? ??????????????? | | ?????????????????????????????? ??????????????? | | ?????????????????????????????? ??????????????? | | ?????????????????????????????? ????????????????? | | ?????????????????????????????????????????????????? | | ?????????????????????????????????????????????????? | | ?????????????????????????????????????????????????? | | ?????????????????????????????????????????????????? | | ?????????????????????????????????????????????????? | | ?????????????????????????????????????????????????? | | ?????????????????????????????????????????????????? | | ?????????????????????????????????????????????????? | | ?????????????????????????????????????????????????? | | ?????????????????????????????????????????????????? | | ?????????????????????????????????????????????????? | | ?????????????????????????????????????????????????? | | ?????????????????????????????????????????????????? | +----------------------------------------------------+ Best States ------------- Heat Dissipation 38 Energy Generation 10 Energy Capacity 250 Matter Stores 281 Matter Capacity 300 Sight Range 16 Terrain Scan Density 10 Evasion (%) 55 Item Schematics ----------------- None Robot Schematics ------------------ None Fabricated ------------ Nothing Alien Tech Used ----------------- None Achievements -------------- Maybe Next Time I'll Detach My Launcher Part-time Excavator Shopping List Challenges ------------ None Game ------ Seed CentriumProtonWand Manual? 0 Play Time 00:13:19 Cumulative 2.8 hours Start 2024.04.14 @ 21:26:03 End 2024.04.14 @ 21:38:59 Sessions 1 Manual Loads 0 Difficulty Rogue Special Mode None Game No. 8 Rogue 8 Adventurer 0 Explorer 0 Win Type - Total 0 Types 0/0/0/0/0/0/0/0/0 Lore% 4 Gallery% 6 Achievement% 8 Wizard Run 0 Options --------- Layout 1 ASCII 0 Keyboard 0 Movement Vi Keybinds 0 Fullscreen 1 Font 32/Terminus Map View 77x35 Zoom Use 0% Tactical HUD 0 Map Filters NONE Filters NONE Steam 1 RUN: c2cca244-28b0-4cd6-87e2-3043933dd4b6